bitfinex/quotes_SOLUSD_20241213
["timestamp","ask_amount","ask_price","bid_price","bid_amount"]
[1734054915961,0.25098,226.29,226.24,8.26889055]
[1734054916975,0.25098,226.29,226.22,8.26889055]
[1734054917365,8.26889055,226.26,226.17,1.6604]
[1734054917682,0.25098,226.26,226.21,8.26889055]
[1734054917984,0.25098,226.26,226.17,1.6604]
[1734054917985,0.12549,226.26,226.2,8.26889055]
[1734054918204,0.25098,226.27,226.21,8.26889055]
[1734054922667,0.25098,226.27,226.11,1.581]
[1734054922668,0.25098,226.21,226.11,1.581]
[1734054922875,0.25098,226.21,226.07,47.90293255]
[1734054922876,8.26889055,226.18,226.12,8.26889055]
[1734054923171,8.26889055,226.17,226.07,6.5812]
[1734054923374,8.26889055,226.16,226.1,8.26889055]
[1734054923690,0.25098,226.21,226.11,8.26889055]
[1734054924020,8.26889055,226.21,226.15,8.26889055]
[1734054925502,8.26889055,226.2,226.14,8.26889055]
[1734054925672,8.26889055,226.18,226.12,8.26889055]
[1734054926504,8.26889055,226.19,226.12,8.26889055]
[1734054926672,8.26889055,226.19,226.13,8.26889055]
[1734054926875,8.26889055,226.2,226.14,8.26889055]
[1734054927588,8.26889055,226.21,226.14,8.26889055]
[1734054927989,8.26889055,226.2,226.14,8.26889055]
[1734054929982,8.26889055,226.21,226.14,8.26889055]
[1734054930596,8.26889055,226.2,226.14,8.26889055]
[1734054932590,8.26889055,226.21,226.14,8.26889055]
[1734054932798,8.26889055,226.21,226.15,8.26889055]
[1734054933007,8.26889055,226.2,226.13,28.26889055]
[1734054933787,8.26889055,226.21,226.14,8.26889055]
[1734054933983,0.25098,226.25,226.16,8.26889055]
[1734054934204,0.25098,226.25,226.19,8.26889055]
[1734054934614,16.32899055,226.26,226.19,8.26889055]
[1734054934790,8.26889055,226.25,226.19,8.26889055]
[1734054935209,8.0601,226.26,226.19,8.26889055]
[1734054935397,8.26889055,226.25,226.19,8.26889055]
[1734054935906,0.25098,226.24,226.18,8.26889055]
[1734054936997,0.25098,226.26,226.2,8.26889055]
[1734054937718,0.25098,226.27,226.21,8.26889055]
[1734054938891,8.51987055,226.27,226.2,8.26889055]
[1734054939285,8.26889055,226.25,226.18,28.26889055]
[1734054939631,8.26889055,226.25,226.18,8.26889055]
[1734054940526,8.26889055,226.24,226.17,52.04577455]
[1734054940731,8.26889055,226.21,226.13,1.6211]
[1734054940915,8.26889055,226.21,226.14,8.26889055]
[1734054941386,8.26889055,226.21,226.12,11.0557]
[1734054941587,8.26889055,226.21,226.14,8.26889055]
[1734054941787,33.3265422,226.27,226.14,8.26889055]
[1734054941989,8.26889055,226.21,226.14,8.26889055]
[1734054943145,8.26889055,226.2,226.1,13.08695542]
[1734054943356,8.26889055,226.16,226.13,20.0]
[1734054943823,0.12549,226.2,226.15,8.26889055]
[1734054944015,1.6567,226.21,226.16,8.26889055]
[1734054944016,0.25098,226.21,226.16,8.26889055]
[1734054944860,14.66449055,226.22,226.16,8.26889055]
[1734054945071,8.26889055,226.23,226.16,8.26889055]
[1734054945354,8.26889055,226.22,226.16,8.26889055]
[1734054945554,0.25098,226.25,226.16,8.26889055]
[1734054945555,8.26889055,226.23,226.16,8.26889055]
[1734054945761,8.26889055,226.22,226.16,8.26889055]
[1734054945944,8.26889055,226.23,226.16,8.26889055]
[1734054946648,0.25098,226.25,226.19,8.26889055]
[1734054946823,8.26889055,226.28,226.21,8.26889055]
[1734054947026,8.26889055,226.27,226.2,28.26889055]
[1734054947334,8.26889055,226.26,226.21,20.0]
[1734054947721,8.26889055,226.26,226.2,28.26889055]
[1734054948123,0.25098,226.29,226.2,28.26889055]
[1734054948345,8.26889055,226.26,226.2,28.26889055]
[1734054949973,8.26889055,226.26,226.2,20.0]
[1734054951261,0.25098,226.29,226.2,28.26889055]
[1734054951449,8.26889055,226.27,226.2,28.26889055]
[1734054956546,0.25098,226.29,226.2,28.26889055]
[1734054956748,8.26889055,226.27,226.2,28.26889055]
[1734054961534,8.26889055,226.27,226.2,20.0]
[1734054961741,8.26889055,226.25,226.19,20.0]
[1734054963066,0.25098,226.25,226.19,28.26889055]
[1734054963761,8.51987055,226.23,226.18,20.0]
[1734054963953,8.26889055,226.23,226.18,20.0]
[1734054964545,0.25098,226.25,226.18,8.26889055]
[1734054964546,8.51987055,226.25,226.18,8.26889055]
[1734054964767,0.25098,226.25,226.19,8.26889055]
[1734054964963,8.51987055,226.25,226.18,8.26889055]
[1734054965465,8.26889055,226.24,226.17,28.26889055]
[1734054966647,0.25098,226.23,226.17,28.26889055]
[1734054967267,8.51987055,226.23,226.17,28.26889055]
[1734054968646,8.51987055,226.23,226.12,6.88695542]
[1734054968647,8.26889055,226.18,226.12,6.88695542]
[1734054968845,8.26889055,226.16,226.1,6.88695542]
[1734054969052,8.26889055,226.16,226.09,6.88695542]
[1734054969253,8.19218,226.23,226.12,8.26889055]
[1734054969568,8.19218,226.23,226.1,18.60721004]
[1734054969759,1.70119,226.23,226.18,8.26889055]
[1734054971383,8.26889055,226.22,226.15,8.26889055]
[1734054971684,8.26889055,226.21,226.14,8.26889055]
[1734054972191,8.26889055,226.19,226.12,8.26889055]
[1734054972358,8.26889055,226.19,226.13,8.26889055]
[1734054972554,8.39438055,226.2,226.13,8.26889055]
[1734054972864,8.26889055,226.21,226.14,8.26889055]
[1734054973196,0.25098,226.21,226.15,8.26889055]
[1734054973495,0.25098,226.22,226.12,30.66383942]
[1734054973661,0.25098,226.27,226.18,8.26889055]
[1734054973857,8.26889055,226.24,226.18,8.26889055]
[1734054974064,8.26889055,226.26,226.19,8.26889055]
[1734054974402,0.25098,226.25,226.19,8.26889055]
[1734054975172,8.26889055,226.25,226.19,8.26889055]
[1734054976785,8.51987055,226.25,226.19,8.26889055]
[1734054976993,8.39438055,226.25,226.19,8.26889055]
[1734054977161,8.26889055,226.25,226.19,8.26889055]
[1734054980779,0.25098,226.25,226.19,8.26889055]
[1734054983487,8.26889055,226.25,226.19,8.26889055]
[1734054983782,8.26889055,226.26,226.19,8.26889055]
[1734054984984,8.26889055,226.25,226.18,15.15584597]
[1734054985284,8.26889055,226.25,226.18,8.26889055]
[1734054986499,0.25098,226.27,226.17,6.88695542]
[1734054986500,8.26889055,226.26,226.19,8.26889055]
[1734054987170,8.26889055,226.26,226.19,15.15584597]
[1734054987471,8.26889055,226.25,226.18,15.15584597]
[1734054988265,8.26889055,226.25,226.19,6.88695542]
[1734054988574,8.26889055,226.25,226.18,15.15584597]
[1734054989188,8.26889055,226.25,226.18,8.26889055]
[1734054989568,8.26889055,226.25,226.17,15.15584597]
[1734054990098,8.26889055,226.25,226.18,6.88695542]
[1734054991469,8.26889055,226.25,226.18,15.15584597]
[1734054992903,8.26889055,226.25,226.17,15.15584597]
[1734054996291,8.26889055,226.25,226.18,6.88695542]
[1734054998287,8.51987055,226.24,226.18,6.88695542]
[1734054998471,8.26889055,226.22,226.16,6.88695542]
[1734054998676,8.26889055,226.19,226.15,6.88695542]
[1734054998969,8.26889055,226.19,226.13,6.88695542]
[1734054999402,8.26889055,226.19,226.12,15.15584597]
[1734054999570,8.26889055,226.21,226.14,8.26889055]
[1734055000407,8.26889055,226.22,226.15,8.26889055]
[1734055000888,8.26889055,226.24,226.17,8.26889055]
[1734055002072,8.26889055,226.23,226.16,8.26889055]
[1734055003399,0.25098,226.27,226.16,8.26889055]
[1734055003594,8.26889055,226.23,226.16,8.26889055]
[1734055003791,8.26889055,226.23,226.16,15.15584597]
[1734055004004,8.26889055,226.24,226.17,8.26889055]
[1734055004888,8.26889055,226.27,226.2,8.26889055]
[1734055005786,8.26889055,226.27,226.2,15.15584597]
[1734055006097,9.81399055,226.28,226.21,8.26889055]
[1734055006480,1.5451,226.28,226.22,8.26889055]
[1734055006798,9.81399055,226.28,226.21,8.26889055]
[1734055009602,9.81399055,226.28,226.2,23.776884]
[1734055009789,9.81399055,226.28,226.21,8.26889055]
[1734055009983,9.81399055,226.28,226.2,23.776884]
[1734055010477,9.81399055,226.28,226.21,8.26889055]
[1734055012402,8.26889055,226.27,226.2,23.776884]
[1734055012601,8.26889055,226.24,226.17,6.88695542]
[1734055012801,8.26889055,226.24,226.17,8.26889055]
[1734055013006,8.26889055,226.21,226.16,6.88695542]
[1734055013217,8.26889055,226.2,226.14,6.88695542]
[1734055013786,8.26889055,226.21,226.14,8.26889055]
[1734055013987,8.26889055,226.21,226.13,6.88695542]
[1734055014205,8.26889055,226.2,226.13,15.15584597]
[1734055014392,8.26889055,226.21,226.15,20.0]
[1734055014990,8.26889055,226.21,226.14,8.26889055]
[1734055015597,8.26889055,226.21,226.15,28.26889055]
[1734055015995,8.26889055,226.21,226.15,8.26889055]
[1734055016390,8.26889055,226.21,226.14,8.26889055]
[1734055017994,8.26889055,226.2,226.13,32.04577455]
[1734055018196,0.25098,226.24,226.14,8.26889055]
[1734055018396,8.26889055,226.21,226.14,8.26889055]
[1734055019797,8.26889055,226.21,226.14,15.15584597]
[1734055020114,8.26889055,226.21,226.14,8.26889055]
[1734055020885,1.5451,226.28,226.18,8.26889055]
[1734055021095,8.26889055,226.27,226.21,8.26889055]
[1734055021533,8.26889055,226.26,226.2,8.26889055]
[1734055022393,8.51987055,226.27,226.2,8.26889055]
[1734055023216,8.26889055,226.26,226.2,8.26889055]
[1734055024719,8.26889055,226.24,226.17,8.26889055]
[1734055024895,8.26889055,226.24,226.2,20.0]
[1734055025496,8.26889055,226.25,226.2,20.0]
[1734055026112,8.51987055,226.27,226.2,28.26889055]
[1734055026309,8.26889055,226.26,226.2,20.0]
[1734055026893,8.51987055,226.27,226.2,28.26889055]
[1734055027615,8.26889055,226.28,226.21,8.26889055]
[1734055027836,8.26889055,226.29,226.22,8.26889055]
[1734055028000,8.26889055,226.28,226.21,8.26889055]
[1734055029025,8.26889055,226.28,226.21,28.26889055]
[1734055029397,8.26889055,226.27,226.21,20.0]
[1734055029597,6.2062,226.3,226.21,28.26889055]
[1734055029598,0.25098,226.29,226.21,28.26889055]
[1734055029814,8.26889055,226.28,226.21,28.26889055]
[1734055033335,8.26889055,226.32,226.24,8.26889055]
[1734055033831,8.26889055,226.3,226.23,8.26889055]
[1734055034229,8.26889055,226.29,226.22,28.26889055]
[1734055034833,8.26889055,226.26,226.22,20.0]
[1734055035041,8.26889055,226.25,226.2,20.0]
[1734055035341,8.26889055,226.24,226.17,8.26889055]
[1734055036314,8.26889055,226.24,226.14,13.77391085]
[1734055036315,8.26889055,226.23,226.15,6.88695542]
[1734055036518,8.26889055,226.23,226.16,8.26889055]
[1734055037231,8.26889055,226.21,226.18,20.0]
[1734055037827,8.26889055,226.21,226.17,20.0]
[1734055038010,8.39438055,226.22,226.18,20.0]
[1734055038430,8.26889055,226.22,226.18,20.0]
[1734055039445,8.26889055,226.22,226.17,20.0]
[1734055039613,8.26889055,226.22,226.18,20.0]
[1734055040028,8.26889055,226.19,226.11,6.88695542]
[1734055040224,8.26889055,226.19,226.12,8.26889055]
[1734055040437,8.26889055,226.15,226.11,6.88695542]
[1734055040927,0.12549,226.21,226.11,6.88695542]
[1734055041149,8.26889055,226.17,226.11,6.88695542]
[1734055041441,8.26889055,226.19,226.12,8.26889055]
[1734055041642,8.26889055,226.18,226.11,8.26889055]
[1734055043441,8.26889055,226.17,226.11,20.0]
[1734055043851,8.26889055,226.17,226.1,8.26889055]
[1734055046347,8.26889055,226.17,226.11,8.26889055]
[1734055047149,8.26889055,226.17,226.1,8.26889055]
[1734055047541,0.12549,226.16,226.1,20.0]
[1734055047748,0.12549,226.16,226.1,28.26889055]
[1734055048461,8.39438055,226.16,226.1,20.0]
[1734055048866,0.12549,226.16,226.1,28.26889055]
[1734055051041,0.12549,226.16,226.11,8.26889055]
[1734055051370,8.26889055,226.16,226.1,20.0]
[1734055051867,8.39438055,226.17,226.1,28.26889055]
[1734055053443,0.12549,226.17,226.11,8.26889055]
[1734055054072,8.39438055,226.17,226.1,8.26889055]
[1734055054876,8.26889055,226.16,226.09,28.26889055]
[1734055055044,8.39438055,226.17,226.09,28.26889055]
[1734055056360,8.39438055,226.17,226.04,4.79373562]
[1734055056361,0.12549,226.15,226.08,8.26889055]
[1734055056862,0.12549,226.15,226.09,8.26889055]
[1734055057245,0.12549,226.15,226.1,8.26889055]
[1734055057442,0.12549,226.16,226.1,8.26889055]
[1734055057843,8.39438055,226.16,226.09,8.26889055]
[1734055058248,8.39438055,226.16,226.07,20.0]
[1734055058458,8.39438055,226.16,226.09,8.26889055]
[1734055058849,6.1227,226.18,226.08,8.26889055]
[1734055058850,8.26889055,226.15,226.08,8.26889055]
[1734055059056,0.12549,226.14,226.07,20.0]
[1734055059450,8.39438055,226.15,226.08,8.26889055]
[1734055060853,8.39438055,226.15,226.07,28.26889055]
[1734055061567,8.39438055,226.15,225.88,21.26174463]
[1734055061568,0.12549,226.15,226.01,23.776884]
[1734055061770,8.39438055,226.09,226.0,6.88695542]
[1734055061978,8.26889055,226.08,226.0,6.88695542]
[1734055062275,8.26889055,226.08,226.01,8.26889055]
[1734055062478,8.39438055,226.09,226.0,6.88695542]
[1734055062675,8.39438055,226.09,226.02,8.26889055]
[1734055062968,18.7177,226.18,226.06,8.26889055]
[1734055062969,20.12549,226.15,226.06,8.26889055]
[1734055063171,0.12549,226.12,226.06,8.26889055]
[1734055063569,0.12549,226.12,226.05,8.26889055]
[1734055063768,8.39438055,226.12,226.05,8.26889055]
[1734055064649,0.12549,226.12,226.05,8.26889055]
[1734055064856,0.12549,226.14,226.08,8.26889055]
[1734055065871,0.12549,226.14,226.09,8.26889055]
[1734055066056,0.12549,226.15,226.09,8.26889055]
[1734055066257,8.26889055,226.16,226.09,8.26889055]
[1734055066576,0.12549,226.17,226.04,0.66339434]
[1734055066577,0.12549,226.15,226.1,8.26889055]
[1734055066957,0.12549,226.16,226.1,8.26889055]
[1734055067672,0.12549,226.17,226.1,8.26889055]
[1734055068674,8.39438055,226.17,226.09,8.26889055]
[1734055069454,8.39438055,226.17,226.1,8.26889055]
[1734055070256,0.12549,226.17,226.11,8.26889055]
[1734055070564,0.12549,226.17,226.1,8.26889055]
[1734055070565,8.39438055,226.17,226.1,8.26889055]
[1734055070958,1.5416,226.18,226.12,8.26889055]
[1734055072474,8.26889055,226.19,226.12,8.26889055]
[1734055072975,13.68498857,226.23,226.14,8.26889055]
[1734055072976,0.12549,226.2,226.14,8.26889055]
[1734055073273,7.9754,226.23,226.16,8.26889055]
[1734055073465,9.77629055,226.23,226.16,8.26889055]
[1734055073668,8.26889055,226.24,226.17,8.26889055]
[1734055073854,8.26889055,226.25,226.18,8.26889055]
[1734055074471,8.1439,226.28,226.19,8.26889055]
[1734055074682,8.26889055,226.26,226.19,8.26889055]
[1734055077085,8.1439,226.28,226.21,8.26889055]
[1734055077374,16.41279055,226.28,226.21,8.26889055]
[1734055078162,9.83889055,226.28,226.21,8.26889055]
[1734055078783,8.26889055,226.28,226.21,8.26889055]
[1734055078993,6.058,226.33,226.23,8.26889055]
[1734055079170,8.26889055,226.3,226.23,8.26889055]
[1734055080275,8.26889055,226.28,226.21,8.26889055]
[1734055082270,8.26889055,226.24,226.2,20.0]
[1734055082592,8.26889055,226.24,226.17,8.26889055]
[1734055083088,8.26889055,226.23,226.15,8.26889055]
[1734055083293,8.26889055,226.22,226.18,20.0]
[1734055083472,8.26889055,226.2,226.13,8.26889055]
[1734055084081,8.26889055,226.21,226.14,8.26889055]
[1734055084577,8.26889055,226.21,226.11,11.0563]
[1734055084778,8.26889055,226.21,226.14,8.26889055]
[1734055085776,8.26889055,226.21,226.15,8.26889055]
[1734055086896,8.26889055,226.21,226.12,23.776884]
[1734055086897,8.26889055,226.21,226.14,8.26889055]
[1734055088998,0.12549,226.2,226.14,20.0]
[1734055091003,8.26889055,226.19,226.14,20.0]
[1734055091295,8.26889055,226.17,226.1,8.26889055]
[1734055091688,0.12549,226.2,226.11,8.26889055]
[1734055091689,8.26889055,226.18,226.11,8.26889055]
[1734055091900,0.12549,226.17,226.12,8.26889055]
[1734055092482,0.12549,226.18,226.12,8.26889055]
[1734055094208,8.26889055,226.19,226.13,8.26889055]
[1734055094209,0.12549,226.19,226.13,8.26889055]
[1734055094903,8.39438055,226.19,226.12,8.26889055]
[1734055095103,0.12549,226.17,226.1,28.26889055]
[1734055095290,8.39438055,226.17,226.1,28.26889055]
[1734055097085,0.12549,226.17,226.1,28.26889055]
[1734055097292,8.39438055,226.17,226.1,8.26889055]
[1734055097682,8.26889055,226.13,226.08,20.0]
[1734055097904,8.26889055,226.12,226.05,8.26889055]
[1734055098805,0.12549,226.13,226.08,8.26889055]
[1734055099197,0.12549,226.13,226.07,8.26889055]
[1734055100186,8.26889055,226.12,226.05,8.26889055]
[1734055103593,0.12549,226.11,226.02,6.88695542]
[1734055103818,0.12549,226.1,226.05,20.0]
[1734055104398,0.12549,226.11,226.06,8.26889055]
[1734055104606,0.12549,226.12,226.06,8.26889055]
[1734055104796,8.26889055,226.11,226.04,8.26889055]
[1734055104996,0.12549,226.1,226.04,8.26889055]
[1734055115982,1.6084,226.16,226.06,8.26889055]
[1734055116168,8.39438055,226.15,226.08,8.26889055]
[1734055116361,8.26889055,226.15,226.08,8.26889055]
[1734055118786,0.12549,226.14,226.08,8.26889055]
[1734055119079,0.12549,226.14,226.07,8.26889055]
[1734055119971,0.12549,226.14,226.04,0.66352326]
[1734055119972,0.12549,226.14,226.08,8.26889055]
[1734055123587,1.6084,226.16,226.1,8.26889055]
[1734055123788,8.26889055,226.2,226.13,8.26889055]
[1734055124082,9.81799055,226.21,226.14,8.26889055]
[1734055124293,8.26889055,226.19,226.12,8.26889055]
[1734055125268,0.12549,226.19,226.13,8.26889055]
[1734055126889,0.12549,226.19,226.14,8.26889055]
[1734055127194,0.12549,226.19,226.13,8.26889055]
[1734055127569,8.26889055,226.2,226.14,8.26889055]
[1734055128982,8.26889055,226.19,226.1,43.776884]
[1734055129184,8.26889055,226.19,226.12,8.26889055]
[1734055130691,0.12549,226.2,226.1,20.0]
[1734055130692,8.26889055,226.15,226.1,20.0]
[1734055130906,0.12549,226.2,226.1,20.0]
[1734055130907,8.26889055,226.14,226.1,20.0]
[1734055131190,8.26889055,226.14,226.07,8.26889055]
[1734055131593,8.26889055,226.13,226.06,8.26889055]
[1734055132099,8.26889055,226.11,226.05,8.26889055]
[1734055132577,8.26889055,226.11,226.04,8.26889055]
[1734055132767,8.26889055,226.11,226.05,8.26889055]
[1734055132972,8.26889055,226.12,226.06,8.26889055]
[1734055133389,8.26889055,226.11,226.05,8.26889055]
[1734055135071,8.26889055,226.11,226.02,6.88695542]
[1734055135072,8.26889055,226.1,226.03,8.26889055]
[1734055135272,8.39438055,226.09,226.02,8.26889055]
[1734055135987,8.26889055,226.08,226.02,8.26889055]
[1734055136294,8.26889055,226.08,226.04,20.0]
[1734055136507,0.12549,226.09,226.0,8.26889055]
[1734055136798,8.26889055,226.06,226.0,8.26889055]
[1734055137102,8.26889055,226.07,226.0,8.26889055]
[1734055137471,8.26889055,226.04,225.98,6.88695542]
[1734055137667,8.26889055,226.04,225.98,15.15584597]
[1734055137902,8.26889055,226.05,225.98,15.15584597]
[1734055138105,8.26889055,226.05,225.98,8.26889055]
[1734055138782,8.26889055,226.06,225.99,8.26889055]
[1734055138975,0.12549,226.05,225.99,8.26889055]
[1734055140393,8.26889055,226.06,225.98,6.88695542]
[1734055140394,0.12549,226.06,226.0,8.26889055]
[1734055140591,0.12549,226.06,226.01,8.26889055]
[1734055140896,8.26889055,226.08,226.01,8.26889055]
[1734055140897,0.12549,226.07,226.01,8.26889055]
[1734055141085,0.12549,226.08,226.02,8.26889055]
[1734055141670,8.26889055,226.1,226.03,8.26889055]
[1734055141987,0.12549,226.1,226.04,8.26889055]
[1734055142893,1.6256,226.13,226.05,8.26889055]
[1734055142894,8.26889055,226.12,226.05,8.26889055]
[1734055143206,9.89449055,226.13,226.06,8.26889055]
[1734055143405,9.89449055,226.13,226.07,20.0]
[1734055143694,1.6256,226.13,226.07,28.26889055]
[1734055144088,1.6256,226.13,226.08,20.0]
[1734055144504,9.89449055,226.13,226.08,20.0]
[1734055144680,1.6256,226.13,226.08,20.0]
[1734055144880,9.89449055,226.13,226.08,20.0]
[1734055145310,1.6256,226.13,226.08,20.0]
[1734055147416,14.49519055,226.15,226.08,28.26889055]
[1734055147583,8.26889055,226.16,226.09,8.26889055]
[1734055147789,0.12549,226.15,226.09,8.26889055]
[1734055148898,8.39438055,226.15,226.08,28.26889055]
[1734055149078,8.39438055,226.15,226.09,20.0]
[1734055149901,0.12549,226.15,226.09,28.26889055]
[1734055151497,0.12549,226.15,226.1,20.0]
[1734055152984,0.12549,226.16,226.11,8.26889055]
[1734055153282,0.12549,226.17,226.11,8.26889055]
[1734055154303,8.26889055,226.16,226.1,20.0]
[1734055155212,8.26889055,226.15,226.1,20.0]
[1734055157509,8.26889055,226.14,226.09,20.0]
[1734055157710,8.26889055,226.14,226.1,20.0]
[1734055158687,8.26889055,226.15,226.08,28.26889055]
[1734055158900,8.26889055,226.15,226.09,20.0]
[1734055159108,0.12549,226.15,226.09,28.26889055]
[1734055160599,0.12549,226.15,226.1,20.0]
[1734055160805,0.12549,226.15,226.09,28.26889055]
[1734055161183,8.39438055,226.15,226.09,20.0]
[1734055161387,0.12549,226.15,226.09,28.26889055]
[1734055162587,0.12549,226.17,226.09,28.26889055]
[1734055162804,0.12549,226.15,226.09,28.26889055]
[1734055163208,0.12549,226.15,226.1,20.0]
[1734055164496,0.12549,226.17,226.1,20.0]
[1734055164699,0.12549,226.15,226.1,20.0]
[1734055167105,1.5091,226.18,226.1,8.26889055]
[1734055167412,7.7985,226.25,226.16,8.26889055]
[1734055167598,8.26889055,226.24,226.18,8.26889055]
[1734055168001,8.26889055,226.24,226.17,8.26889055]
[1734055168691,8.39438055,226.23,226.16,28.26889055]
[1734055168888,8.26889055,226.23,226.16,28.26889055]
[1734055170107,8.26889055,226.23,226.17,8.26889055]
[1734055173603,8.39438055,226.24,226.17,8.26889055]
[1734055174822,1.5151,226.25,226.19,8.26889055]
[1734055175196,0.12549,226.25,226.19,8.26889055]
[1734055175402,8.26889055,226.26,226.19,8.26889055]
[1734055175821,8.26889055,226.27,226.2,8.26889055]
[1734055180819,8.26889055,226.27,226.21,8.26889055]
[1734055181022,8.26889055,226.28,226.21,8.26889055]
[1734055181321,8.26889055,226.29,226.23,8.26889055]
[1734055181902,20.0,226.2,226.09,6.88695542]
[1734055182106,0.12549,226.15,226.05,8.26889055]
[1734055182313,8.26889055,226.08,226.01,7.55036352]
[1734055182627,8.26889055,226.08,226.01,15.81925407]
[1734055183058,8.26889055,226.09,226.02,8.26889055]
[1734055184522,8.26889055,226.09,226.05,20.0]
[1734055185306,8.26889055,226.1,226.05,20.0]
[1734055186018,0.82926012,226.15,226.09,28.26889055]
[1734055186227,6.658,226.23,226.17,20.0]
[1734055186529,6.658,226.23,226.17,8.26889055]
[1734055186732,8.26889055,226.21,226.15,20.0]
[1734055186910,0.82902224,226.2,226.09,23.776884]
[1734055187110,0.82902224,226.2,226.12,20.0]
[1734055187315,8.26889055,226.17,226.1,8.26889055]
[1734055187532,0.12549,226.17,226.11,8.26889055]
[1734055187846,9.22349824,226.17,226.09,24.44017815]
[1734055188048,9.22349824,226.17,226.1,8.26889055]
[1734055188222,0.95460769,226.17,226.11,8.26889055]
[1734055188410,9.22349824,226.17,226.11,8.26889055]
[1734055191842,0.95460769,226.17,226.11,8.26889055]
[1734055192845,6.658,226.23,226.13,8.26889055]
[1734055193049,0.12549,226.19,226.14,8.26889055]
[1734055193253,9.22338694,226.19,226.13,8.26889055]
[1734055195031,8.39438055,226.19,226.13,8.26889055]
[1734055195247,0.12549,226.19,226.13,8.26889055]
[1734055195845,0.12549,226.2,226.15,8.26889055]
[1734055196233,8.39438055,226.22,226.15,8.26889055]
[1734055196462,8.26889055,226.21,226.15,8.26889055]
[1734055196755,0.12549,226.2,226.15,8.26889055]
[1734055197846,6.658,226.23,226.15,8.26889055]
[1734055198045,8.26889055,226.21,226.15,8.26889055]
[1734055198962,9.22331895,226.2,226.1,7.55012325]
[1734055199284,8.39438055,226.2,226.14,8.26889055]
[1734055200593,8.26889055,226.21,226.15,8.26889055]
[1734055200795,0.82899284,226.26,226.18,8.26889055]
[1734055201083,8.39438055,226.25,226.18,8.26889055]
[1734055201251,8.26889055,226.22,226.14,20.0]
[1734055201451,8.26889055,226.21,226.15,8.26889055]
[1734055201674,8.26889055,226.21,226.14,28.26889055]
[1734055202089,8.26889055,226.21,226.15,8.26889055]
[1734055202246,8.26889055,226.21,226.14,20.66315664]
[1734055202443,8.26889055,226.2,226.14,20.66315664]
[1734055202787,8.26889055,226.21,226.14,28.93204719]
[1734055202958,8.26889055,226.18,226.11,0.6631762]
[1734055203173,9.09797198,226.17,226.1,8.26889055]
[1734055203486,8.26889055,226.15,226.09,0.66326514]
[1734055203688,8.26889055,226.1,226.04,6.88695542]
[1734055203894,8.26889055,226.09,226.02,15.15584597]
[1734055204260,8.26889055,226.1,226.03,8.26889055]
[1734055204459,40.7949522,226.16,226.06,8.26889055]
[1734055204460,0.8293426,226.15,226.06,8.26889055]
[1734055204656,8.26889055,226.14,226.07,8.26889055]
[1734055206078,8.26889055,226.15,226.08,28.26889055]
[1734055206414,8.26889055,226.14,226.07,32.04577455]
[1734055206982,8.26889055,226.13,226.07,23.776884]
[1734055207806,8.26889055,226.14,226.07,8.26889055]
[1734055208098,8.26889055,226.11,226.07,20.0]
[1734055208310,8.26889055,226.11,226.04,8.26889055]
[1734055208893,8.26889055,226.11,226.02,7.55034605]
[1734055209209,8.39438055,226.09,226.02,8.26889055]
[1734055209510,8.26889055,226.07,226.01,6.88695542]
[1734055209708,8.26889055,226.08,226.03,20.0]
[1734055209890,8.26889055,226.08,226.04,20.0]
[1734055210815,8.26889055,226.09,226.04,20.0]
[1734055210995,8.26889055,226.1,226.03,8.26889055]
[1734055213337,8.26889055,226.11,226.03,8.26889055]
[1734055213541,8.26889055,226.11,226.04,8.26889055]
[1734055214826,8.26889055,226.12,226.05,8.93234466]
[1734055215315,8.26889055,226.12,226.05,8.26889055]
[1734055215517,8.26889055,226.13,226.06,8.26889055]
[1734055215926,8.26889055,226.13,226.05,0.66342577]
[1734055215927,8.26889055,226.13,226.07,8.26889055]
[1734055216132,8.26889055,226.14,226.07,8.26889055]
[1734055216643,8.26889055,226.15,226.08,28.26889055]
[1734055217310,8.26889055,226.14,226.08,20.0]
[1734055217510,7.5939,226.16,226.08,28.26889055]
[1734055217709,8.52617456,226.22,226.11,8.26889055]
[1734055217929,8.26889055,226.18,226.12,8.26889055]
[1734055218534,8.26889055,226.18,226.11,8.26889055]
[1734055218928,8.26889055,226.14,226.08,20.0]
[1734055219126,8.26889055,226.14,226.07,8.26889055]
[1734055219436,8.26889055,226.09,226.02,6.88695542]
[1734055219607,8.26889055,226.09,226.02,8.26889055]
[1734055220613,8.26889055,226.09,226.03,28.26889055]
[1734055220834,8.26889055,226.1,226.03,28.26889055]
[1734055221253,0.82935156,226.13,226.03,20.0]
[1734055221254,8.26889055,226.09,226.03,20.0]
[1734055221555,8.26889055,226.08,226.03,20.0]
[1734055223263,8.71195156,226.13,226.03,20.0]